Cogmind - Beta 16.1 @@@ ROGUE MODE // 2026.01.21 @ 03:11:21 Player: Heni Result: Destroyed by KP-CM8(R) with Subdweller Machine Gun Performance ------------- Evolutions (0) 0 Regions Visited (2) 400 Robots Destroyed (25) 125 Value Destroyed (565) 565 Prototype IDs (0) 0 Alien Tech Used (0) 0 Bonus (0) 0 TOTAL SCORE: 1090 Bonus ------- None Cogmind --------- Core Integrity 0/250 Matter 197/300 Energy 125/125 System Corruption 4% Temperature Cool (0) Movement Core (200) Ox3 Location -10/Subcaves Parts ------- > --- POWER (1) -------- Light Ion Engine > --- PROPULSION (2) --- (None) > --- UTILITY (2) ------ Small Storage Unit > --- WEAPON (2) ------- EM Pulse Gun > --- INVENTORY (8) ---- Aluminum Leg High-capacity Storage Unit Hacking Suite Subdweller Beam Cannon Light Assault Rifle Light Assault Rifle Peak State ------------ > --- POWER ------------ Ion Engine > --- PROPULSION ------- Aluminum Leg Aluminum Leg > --- UTILITY ---------- Small Storage Unit Light Armor Plating > --- WEAPON ----------- Subdweller Beam Cannon Assault Rifle > --- INVENTORY -------- Light Ion Engine Aluminum Leg Aluminum Leg High-capacity Storage Unit Hacking Suite EM Pulse Gun Light Assault Rifle Light Assault Rifle [Rating: 9] Favorites ----------- Power Ion Engine Engine Ion Engine Propulsion Light Treads Treads Light Treads Leg Aluminum Leg Wheel Compact Wheel Utility Small Storage Unit Device Seismic Detector Storage Small Storage Unit Protection Light Armor Plating Weapon Assault Rifle Energy Gun EM Pulse Gun Energy Cannon Subdweller Beam Cannon Ballistic Gun Assault Rifle Build | -11 -10 -10 ------- Run | Yrd Mat Sub Slots Evolved . | . . . Power . | . . . Propulsion . | . . . Utility . | . . . Weapon . | . . . Parts Attached 18 | 8 7 3 Power 4 | 1 2 1 Engine 4 | 1 2 1 Core . | . . . Reactor . | . . . Propulsion 6 | 3 3 . Treads 2 | 2 . . Leg 3 | . 3 . Wheel 1 | 1 . . Hover . | . . . Flight . | . . . Utility 3 | 2 1 . Device 1 | 1 . . Storage 1 | 1 . . Processor . | . . . Hackware . | . . . Protection 1 | . 1 . Artifact . | . . . Weapon 5 | 2 1 2 Energy Gun 1 | . . 1 Energy Cannon 1 | . . 1 Ballistic Gun 3 | 2 1 . Ballistic Cannon . | . . . Launcher . | . . . Special Weapon . | . . . Impact Weapon . | . . . Slashing Weapon . | . . . Piercing Weapon . | . . . Special Melee Weapon . | . . . Unidentified Prototypes . | . . . Parts Lost 9 | . 3 6 Power 3 | . 2 1 Propulsion 3 | . . 3 Utility 2 | . 1 1 Weapon 1 | . . 1 Highest Loss Streak 6 | . 2 6 To Critical Strikes . | . . . Average Backups 6 | 5 6 6 Power . | . . . Propulsion 3 | 3 3 1 Utility 1 | . 1 2 Weapon 1 | . 1 2 Tool/Special . | . . . Unused Backups 4 | . 1 3 Power . | . . . Propulsion 2 | . 1 1 Utility 2 | . . 2 Weapon . | . . . Tool/Special . | . . . Average Slot Usage (%) 96 | . 98 78 Engine 13 | . 13 14 Treads 14 | . 16 . Leg 11 | . 11 17 Device 9 | . 10 . Storage 14 | . 14 14 Protection 3 | . 3 7 Ballistic Gun 26 | . 27 15 Peak Build Rating 9 | 7 8 9 Average Rating 6 | 5 7 6 On Entrance 4 | . 7 7 Avg Prop Armor Cover (%) 13 | 13 . . Naked Turns . | . . . Heaviest Build 21 | 12 16 21 Greatest Support 40 | 40 40 20 Greatest Overweight (x) 1 | . 1 1 Average Overweight (x) . | . . . Largest Inventory Capacity 8 | 8 8 8 Average Capacity 7 | 7 8 8 Most Carried 8 | 6 8 8 Average Carried 6 | 5 6 6 Final Capacity 8 | 8 8 8 Final Carried 7 | 6 7 6 Class Distribution -------------------- 100% | Mutant Dominant Class ---------------- Mutant | -10/Materials Mutant | -10/Subcaves Resources | -11 -10 -10 ----------- Run | Yrd Mat Sub Matter Collected 630 | 324 294 12 Remotely . | . . . Salvage Created 848 | 134 675 39 Parts 51 | 14 33 4 Haulers Intercepted 2 | . 2 . Recyclers Shooed 1 | 1 . . Parts Field Recycled . | . . . Retrieved Matter . | . . . Parts Self-Destructed . | . . . Prevented . | . . . Parts Restored . | . . . Kills | -11 -10 -10 ------- Run | Yrd Mat Sub Combat Hostiles Destroyed 15 | . 14 1 Guns 14 | . 14 . Cannons 1 | . . 1 Classes Destroyed 9 | 2 6 1 Worker 1 | . 1 . Tunneler 4 | 4 . . Hauler 2 | . 2 . Recycler 1 | 1 . . Operator 1 | . 1 . Watcher 1 | . 1 . Swarmer 2 | . 2 . Grunt 12 | . 12 . Subdweller 1 | . . 1 Best Kill Streak 7 | 2 7 1 Combat Bots Only 4 | . 4 1 Max Kills in Single Turn 1 | 1 1 1 Gunslinging . | . . . Exploded . | . . . Melee . | . . . Uniques/NPCs Destroyed . | . . . Combat | -11 -10 -10 -------- Run | Yrd Mat Sub Hostile Shots Fired 101 | . 65 36 Missed 28 | . 16 12 Hits 73 | . 49 24 Projectile 73 | . 49 24 Critical Strikes 6 | . 4 2 Damage Taken 1101 | . 604 497 Core 253 | . 99 154 Absorbed by Shields . | . . . Core Remaining (%) 100 | 100 . . Volleys Fired 98 | 17 55 26 Largest 2 | 2 2 2 Hottest 100 | 40 40 100 Shots Fired 174 | 34 109 31 Gun 155 | 34 109 12 Cannon 19 | . . 19 Launcher . | . . . Special . | . . . Kinetic 149 | 34 109 6 Thermal 19 | . . 19 Explosive . | . . . Electromagnetic 6 | . . 6 Robot Hit Streak 12 | 5 11 12 Robot Miss Streak 3 | 2 3 2 Penetration Max . | . . . Secondary Targets . | . . . Shots Hit Robots 115 | 21 73 21 Core Hits 50 | 9 37 4 Critical Kills 1 | 1 . . Critical Parts Destroyed 1 | . 1 . Critical Strikes 3 | 1 1 1 Destroy 2 | 1 1 . Corrupt 1 | . . 1 Melee Attacks . | . . . Impact . | . . . Slashing . | . . . Piercing . | . . . Sneak Attacks . | . . . Combat Hostiles . | . . . Follow-up Attacks . | . . . Damage Inflicted 1476 | 195 848 433 Guns 1131 | 195 827 109 Cannons 324 | . . 324 Explosions . | . . . Melee . | . . . Ramming 21 | . 21 . Kinetic 1087 | 195 827 65 Thermal 324 | . . 324 Explosive . | . . . Electromagnetic 44 | . . 44 Impact . | . . . Slashing . | . . . Piercing . | . . . Highest Corruption 4 | . 4 4 Average Corruption 3 | . 3 4 Corruption Purged . | . . . Corruption Blocked . | . . . Effects 13 | . 8 5 Message Errors 2 | . 1 1 Matter Fused 2 | . 2 . Heat Flow Errors 2 | . 2 . Energy Discharges 3 | . . 3 Parts Rejected 1 | . 1 . Data Loss (minor) 1 | . 1 . Data Loss (major) 1 | . . 1 Weapon Failures 1 | . 1 . Overload Shots . | . . . Overflow Damage . | . . . Projectiles . | . . . Explosions . | . . . Melee . | . . . Knockbacks . | . . . Impact . | . . . Kinetic . | . . . Secondary . | . . . Self-Inflicted Damage . | . . . Shots . | . . . Rammed 1 | . 1 . Targets Rammed 6 | . 6 . Kicked 5 | . 5 . Crushed . | . . . Highest Temperature 196 | . 196 2 Average Temperature 40 | . 41 2 Received Heat Transfer 444 | . 390 54 Siege Activations . | . . . Martial Activations . | . . . Shielding Activations . | . . . Robots Disrupted . | . . . Combat Hostiles . | . . . Robots Corrupted . | . . . Combat Hostiles . | . . . Parts Fried . | . . . Impact Corruptions . | . . . Robots Melted . | . . . Combat Hostiles . | . . . Parts Melted . | . . . Heat Transferred 444 | . . 444 Parts Sabotaged . | . . . Parts Stolen . | . . . Parts Stripped . | . . . Power Chain Reactions . | . . . Alert | -11 -10 -10 ------- Run | Yrd Mat Sub Maximum Alert Level . | . . . Low Security (%) 100 | 100 100 . Level 1 . | . . . Level 2 . | . . . Level 3 . | . . . Level 4 . | . . . Level 5 . | . . . High Security . | . . . Max Security . | . . . Peak Influence 166 | 10 166 . Initial . | . . . Average 33 | 1 42 . Influence Increases 498 | 25 473 . Destroy 0b10 Robot/C 280 | . 280 . Destroy 0b10 Robot/NC 50 | 25 25 . Destroy Leader 66 | . 66 . Successful Hack 12 | . 12 . Lose Combat Pursuer 90 | . 90 . Influence Decreases 498 | 25 337 136 Entered New Map 66 | . . 66 Time Decay 372 | 25 317 30 Lost Part 60 | . 20 40 Squads Dispatched 3 | . 3 . Investigation 2 | . 2 . Extermination . | . . . Reinforcement 1 | . 1 . Assault . | . . . Garrison . | . . . Intercept . | . . . Searches Triggered . | . . . Construction Impeded . | . . . Haulers Reinforced . | . . . Active Scanning Responses . | . . . Cargo Convoy Interrupts . | . . . Stealth | -11 -10 -10 --------- Run | Yrd Mat Sub Distress Signals 3 | . 3 . Communications Jammed . | . . . Distress Signals . | . . . Times Spotted 25 | . 23 2 Peak Tracking Total 6 | . 6 2 Tactical Retreats 4 | . 4 . Traps | -11 -10 -10 ------- Run | Yrd Mat Sub Traps Triggered 5 | . 5 . Indirectly . | . . . Trap Hack Attempts . | . . . Triggered . | . . . Disarmed . | . . . Reprogrammed . | . . . Reused . | . . . Traps Extracted . | . . . Installed . | . . . Triggered . | . . . Machines | -11 -10 -10 ---------- Run | Yrd Mat Sub Machines Disabled . | . . . Max in Single Turn . | . . . Machines Repaired . | . . . Machines Dismantled . | . . . Machines Sabotaged . | . . . Overloaded Fab Kills . | . . . Hacking | -11 -10 -10 --------- Run | Yrd Mat Sub Machines Accessed 4 | . 4 . Terminals 3 | . 3 . Fabricators . | . . . Repair Stations 1 | . 1 . Recycling Units . | . . . Scanalyzers . | . . . Garrison Access . | . . . Total Hacks 14 | . 14 . Successful 3 | . 3 . Failed 11 | . 11 . Catastrophic 1 | . 1 . Database Lockouts . | . . . Manual 8 | . 8 . Terminals 11 | . 11 . Fabricators . | . . . Repair Stations 3 | . 3 . Recycling Units . | . . . Scanalyzers . | . . . Garrison Access . | . . . Terminal Hacks 2 | . 2 . Robot Analysis 2 | . 2 . Fabricator Hacks . | . . . Repair Station Hacks 1 | . 1 . Scan Component 1 | . 1 . Recycling Unit Hacks . | . . . Scanalyzer . | . . . Garrison Access Hacks . | . . . Unauthorized Hacks . | . . . Terminals . | . . . Fabricators . | . . . Repair Stations . | . . . Recycling Units . | . . . Scanalyzers . | . . . Garrison Access . | . . . Data Cores Recovered . | . . . Used . | . . . Hacking Detections 4 | . 4 . Full Trace Events 3 | . 3 . Feedback Events 1 | . 1 . Corruption 1 | . 1 . Feedback Blocked . | . . . Robot Schematics Acquired . | . . . Robots Built . | . . . Authchips . | . . . Time . | . . . Total Robot Build Rating . | . . . Part Schematics Acquired . | . . . Parts Built . | . . . Authchips . | . . . Time . | . . . Total Part Build Rating . | . . . Part Studies Acquired . | . . . Parts Repaired . | . . . Time . | . . . Parts Recycled . | . . . Recycled Matter . | . . . Retrieved Matter . | . . . Retrieved Components . | . . . Parts Scanalyzed . | . . . Part Schematics Acquired . | . . . Parts Damaged . | . . . Bothacking | -11 -10 -10 ------------ Run | Yrd Mat Sub Used RIF Installer . | . . . Robots Hacked . | . . . Non-combat . | . . . Combat . | . . . Robot Hacks Applied . | . . . Relay Couplers Released . | . . . Fabnet Peak Effective % . | . . . Robots Rewired . | . . . Allies Hacked . | . . . Hacks Repelled . | . . . Allies | -11 -10 -10 -------- Run | Yrd Mat Sub Total Allies . | . . . Largest Group . | . . . Highest-Rated Group . | . . . Highest-Rated Ally . | . . . Total Orders . | . . . Ally Attacks . | . . . Total Damage . | . . . Kills . | . . . Allies Corrupted . | . . . Allies Melted . | . . . Intel | -11 -10 -10 ------- Run | Yrd Mat Sub Active Infowar (turns) 797 | 24 773 . Seismic 797 | 24 773 . Robot Analysis Total 2 | . 2 . Derelict Logs Recovered 1 | . . 1 Drone Launches . | . . . Drone Recoveries . | . . . Exploration | -11 -10 -10 ------------- Run | Yrd Mat Sub Turns Passed 1462 | 297 1045 120 Spaces Moved 746 | 150 556 40 Core 7 | 7 . . Treads 427 | 132 295 . Legs 301 | . 261 40 Wheels 11 | 11 . . Hover . | . . . Flight . | . . . Fastest Speed 50 | 50 120 120 Average Speed 142 | 150 141 128 Slowest Speed 190 | 160 190 190 Overloaded Moves . | . . . Propulsion Burnouts . | . . . Robots Hopped . | . . . Potential Cave-ins . | . . . Cave-ins Triggered . | . . . Exploration Rate (%) 24 | 8 61 3 Regions Visited 2 Branch Regions 1 Pre-discovered Areas 1 | . . 1 Known Exits Taken . | . . . Unknown Exits Taken 2 | 1 1 . Scrap Searched . | . . . Spaces Dug . | . . . Terrain Destroyed 2 | . . 2 Melee . | . . . Projectile 2 | . . 2 AOE . | . . . Terrain Rammed . | . . . Walls Destroyed . | . . . Machines Disabled . | . . . Actions | -11 -10 -10 --------- Run | Yrd Mat Sub Total 972 | 187 709 76 Wait 81 | 7 70 4 Move 744 | 149 555 40 Hop . | . . . Pick Up 11 | 6 4 1 Fast Attach 17 | 7 10 . Attach 5 | . 2 3 Detach 1 | . . 1 Swap 4 | 1 2 1 Drop 5 | . 5 . Fire 98 | 17 55 26 Melee . | . . . Ram . | . . . Kick 5 | . 5 . Crush 1 | . 1 . Escape Stasis . | . . . Rewire . | . . . Trap . | . . . Miscellaneous . | . . . Route ------- -11/Scrapyard -10/Materials (discovered 2 exits: [*Mat] / [*Sub]) -10/Subcaves History --------- Turn | Location | Event 6 | -11/Scrapyard | Discovered new exit (range 14) 298 | -11/Scrapyard | Entered Materials 318 | -10/Materials | Build established: Mutant 979 | -10/Materials | Discovered new exit (range 11) 1336 | -10/Materials | Discovered new exit (range 7) 1343 | -10/Materials | Entered Subcaves 1350 | -10/Subcaves | Shifting Twisted Machinery released Sub. Beam Cannon 1355 | -10/Subcaves | Shifting Twisted Machinery released Battle Cannon 1357 | -10/Subcaves | Learned location of Zion (-7) 1416 | -10/Subcaves | Core integrity fell below 50% 1444 | -10/Subcaves | Core integrity fell below 20% 1456 | -10/Subcaves | Lost 6 parts (1p3n1u1w) 1463 | -10/Subcaves | Destroyed by KP-CM8(R) with Subdweller Machine Gun Last Messages --------------- World map updated: -7/Zion. 01360_ Acquired Sub. Beam Cannon. 01375_ System corrupted: Energy discharge (-82). 01382_ Acquired 12 matter. 01390_ Ion Engine destroyed. 01404_ System corrupted: Energy discharge (-32). 01409_ Lgt. Armor Plating destroyed. 01409_ Aluminum Leg destroyed. 01418_ I0-OD4(R) destroyed. 01421_ Assault Rifle destroyed. 01424_ KP-CM8(R) affixes Scrap Shield Fragment to Scrap Shield. 01425_ Aluminum Leg destroyed. 01426_ Subatomizers dissect the Sub. Power Source. 01434_ KP-CM8(R) affixes Scrap Shield Fragment to Scrap Shield. 01438_ Subatomizers dissect the Sub. Power Source. 01444_ System corrupted: Substantial component data lost. 01447_ Sub. Beam Cannon shoots sparks and powers down. 01448_ Subatomizers dissect the Sub. Power Source. 01459_ UM&T/ C/AGYJTXHXRHOHDUY/ 01462_ Subatomizers dissect the Sub. Power Source. Map ----- +----------------------------------------------------+ | ?????????????????????????????????????????????????? | | ?????????????????????????????????????????????????? | | ?????????????????????????????????????????????????? | | ?????????????????????????????????????????????????? | | ?????????????????????????????????????????????????? | | ?????????????????????????????????????????????????? | | ?????????????????????????????????????????????????? | | ?????????????????????????????????????????????????? | | ?????????????????????????????????????????????????? | | ?????????????????????????????????????????????????? | | ?????????????????????????????????????????????????? | | ?????????????????????????????????????????????????? | | ?????????????????????????????????????????????????? | | ?????????????????????????????????????????????????? | | ?????????????????????????????????????????????????? | | ?????????????????????????????????????????????????? | | ?????????????????????????????????????????????????? | | ?????????????????????????????????????????????????? | | ?????????????????????????????????????????????????? | | ?????????????????????????????????????????????????? | | ?????????????????????????????????????????????????? | | ?????????????????????????????????????????????????? | | ??????????????????????????###????????????????????? | | ?????????????###;#######?## #????????????????????? | | ?????? #### %=% ### #????????????????????? | | ???????"" *% R @ #????????????????????? | | ??????"" ! ##???????????????????? | | ??????"" % ##??????????????????? | | ??????" ####" ##?????????????????? | | ????????????# " #;### #?????????????????? | | ???????????" " ##??# # #?????????????????? | | ?????????? ????## #???????#?????????? | | ????????? ## ?????# ##?????? ##????????? | | ????????? ??# ?????## ####### #????????? | | ???????? ???#"???????# "" "#????????? | | ????????? ????##??????## # ### # "] ##????????? | | ??????????????????????# #### " ##?????????? | | ??????????????????????# ##### #??????????? | | ??????????????????????### ## #?????#??????????? | | ????????????????????????#########????????????????? | | ?????????????????????????????????????????????????? | | ?????????????????????????????????????????????????? | | ?????????????????????????????????????????????????? | | ?????????????????????????????????????????????????? | | ?????????????????????????????????????????????????? | | ?????????????????????????????????????????????????? | | ?????????????????????????????????????????????????? | | ?????????????????????????????????????????????????? | | ?????????????????????????????????????????????????? | | ?????????????????????????????????????????????????? | +----------------------------------------------------+ Best States ------------- Heat Dissipation 25 Energy Generation 10 Energy Capacity 250 Matter Stores 300 Matter Capacity 300 Sight Range 16 Terrain Scan Density 10 Armor Coverage 150 Evasion (%) 55 Recoil Reduction 2 Item Schematics ----------------- None Robot Schematics ------------------ None Fabricated ------------ Nothing Repaired ---------- Nothing Studied --------- None Alien Tech Used ----------------- None Achievements -------------- None Challenges ------------ None Game ------ Seed MetafiberIonicRocket Manual? 0 Play Time 00:11:00 Cumulative 670.4 hours Start 2026.01.20 @ 22:47:20 End 2026.01.21 @ 03:11:21 Sessions 2 Manual Loads 0 Difficulty Rogue Special Mode None Game No. 587 Rogue 372 Adventurer 112 Explorer 103 Win Type - Total 43 Types 26/0/9/3/0/0/4/1/0/0 Lore% 68 Gallery% 77 Achievement% 51 Wizard Run 0 Options --------- Layout 0 ASCII 1 Keyboard 1 Movement Vi Keybinds 1 Fullscreen 2 Font 18/SmallcapsGlow Map View 66x52 Zoom Use 4% Tactical HUD 1 Map Filters NONE Filters NONE Steam 0 RUN: 519a6c75-b1e4-4c84-bd5b-79859a245123